bitfinex/quotes_SOLUSD_20241210
["timestamp","ask_amount","ask_price","bid_price","bid_amount"]
[1733821711804,20.0,217.92,217.81,6.4691]
[1733821711979,20.0,217.92,217.82,0.68843703]
[1733821713314,1.8893746,217.93,217.82,0.68843703]
[1733821713607,20.0,217.96,217.83,23.776884]
[1733821713778,20.0,217.96,217.84,0.68828797]
[1733821713977,1.626,217.97,217.84,0.68828797]
[1733821713978,3.49802226,217.97,217.85,23.776884]
[1733821714190,3.49802226,217.97,217.86,0.68822006]
[1733821714394,6.5904,217.96,217.82,0.68830262]
[1733821714610,11.87202226,217.97,217.75,312.0]
[1733821714611,18.1964,217.88,217.75,312.0]
[1733821714815,20.0,217.83,217.61,6.1997]
[1733821714988,11.9913774,217.82,217.61,6.1997]
[1733821715397,23.776884,217.81,217.61,6.1997]
[1733821715585,20.0,217.78,217.61,6.1997]
[1733821715788,1.606,217.76,217.61,6.1997]
[1733821716011,1.606,217.76,217.62,0.68907272]
[1733821716211,1.606,217.76,217.61,6.1997]
[1733821716919,1.606,217.76,217.61,6.88873947]
[1733821717219,20.0,217.72,217.58,2.31521126]
[1733821717797,20.0,217.72,217.68,312.0]
[1733821720216,1.606,217.76,217.68,312.0]
[1733821720917,1.606,217.76,217.59,23.776884]
[1733821720918,2.70228509,217.72,217.59,23.776884]
[1733821721214,2.70228509,217.72,217.61,23.776884]
[1733821721425,1.606,217.76,217.63,23.776884]
[1733821721603,1.606,217.76,217.65,23.776884]
[1733821721802,2.82020335,217.74,217.64,0.68888163]
[1733821722507,2.82020335,217.74,217.61,23.776884]
[1733821722708,2.82020335,217.74,217.63,23.776884]
[1733821723013,2.82020335,217.74,217.64,0.68894122]
[1733821723901,2.82020335,217.74,217.73,312.0]
[1733821724215,1.606,217.76,217.73,312.0]
[1733821724416,1.606,217.76,217.61,23.776884]
[1733821724623,1.606,217.76,217.63,23.776884]
[1733821724801,1.606,217.76,217.65,23.776884]
[1733821725126,1.606,217.76,217.66,0.68889559]
[1733821725309,2.77860211,217.75,217.66,0.68889559]
[1733821726021,2.77860211,217.75,217.65,23.776884]
[1733821726201,2.77860211,217.75,217.66,0.68890037]
[1733821726400,2.77860211,217.75,217.64,0.68889313]
[1733821726837,2.77860211,217.75,217.59,0.68901507]
[1733821727399,2.77860211,217.75,217.71,312.0]
[1733821728729,2.77860211,217.75,217.58,1.6262]
[1733821728730,20.0,217.71,217.58,1.6262]
[1733821728925,20.0,217.71,217.5,8.55917556]
[1733821728926,20.0,217.67,217.5,8.55917556]
[1733821729425,20.0,217.67,217.51,22.30451999]
[1733821729629,20.0,217.67,217.65,312.0]
[1733821729810,20.0,217.67,217.5,7.87]
[1733821730015,20.0,217.67,217.51,22.30451999]
[1733821730317,20.0,217.67,217.52,0.68931702]
[1733821730507,20.0,217.67,217.53,22.30451999]
[1733821730713,20.0,217.67,217.54,0.68922168]
[1733821730911,20.0,217.67,217.63,312.0]
[1733821731321,20.0,217.67,217.36,158.13451999]
[1733821731322,20.0,217.63,217.44,7.87]
[1733821731524,20.0,217.63,217.45,0.68952822]
[1733821731525,20.0,217.59,217.45,0.68952822]
[1733821731830,23.776884,217.62,217.45,0.68952822]
[1733821731831,20.0,217.57,217.45,0.68952822]
[1733821732411,20.0,217.57,217.55,312.0]
[1733821732710,20.0,217.57,217.44,7.87]
[1733821732951,20.0,217.57,217.45,0.68958117]
[1733821734208,8.06202079,217.6,217.46,23.776884]
[1733821734411,8.06202079,217.6,217.47,0.68946535]
[1733821734730,6.1955,217.6,217.47,0.68946535]
[1733821735124,6.1955,217.6,217.48,23.776884]
[1733821735325,6.1955,217.6,217.49,0.68940588]
[1733821735929,6.1955,217.6,217.58,312.0]
[1733821736118,6.1955,217.6,217.45,23.776884]
[1733821736319,20.0,217.57,217.45,0.68954414]
[1733821737408,20.0,217.57,217.41,8.55955505]
[1733821738338,20.0,217.57,217.42,23.776884]
[1733821738718,25.441284,217.56,217.41,0.68955505]
[1733821738933,20.0,217.53,217.37,0.68972736]
[1733821739132,20.0,217.53,217.49,312.0]
[1733821740320,1.6644,217.56,217.49,312.0]
[1733821740521,1.6644,217.56,217.4,23.776884]
[1733821740728,1.6644,217.56,217.42,23.776884]
[1733821741032,1.6644,217.56,217.43,0.68964788]
[1733821741205,1.5474362,217.56,217.43,0.68964788]
[1733821741408,2.81273266,217.53,217.4,24.46652695]
[1733821742210,1.5474362,217.56,217.4,46.77104694]
[1733821742726,1.5474362,217.56,217.4,24.46652695]
[1733821743337,1.5474362,217.56,217.43,23.776884]
[1733821743539,8.78262392,217.6,217.54,312.0]
[1733821743540,6.1955,217.6,217.54,312.0]
[1733821743919,6.1955,217.6,217.45,23.776884]
[1733821744124,7.8599,217.6,217.46,0.68952367]
[1733821744337,7.8599,217.6,217.44,0.68953201]
[1733821744717,7.8599,217.6,217.39,20.0]
[1733821744718,7.8599,217.6,217.42,23.776884]
[1733821744917,20.0,217.57,217.43,0.68965726]
[1733821746147,20.0,217.57,217.44,23.776884]
[1733821746320,20.0,217.57,217.45,0.68953568]
[1733821746923,20.0,217.57,217.55,312.0]
[1733821747538,20.0,217.57,217.43,23.776884]
[1733821747737,20.0,217.57,217.43,24.46649127]
[1733821747977,20.0,217.57,217.43,0.68960727]
[1733821748722,20.0,217.57,217.44,37.74416192]
[1733821748922,20.0,217.57,217.45,0.68951421]
[1733821749332,7.8599,217.6,217.49,13.96727792]
[1733821749527,1.6644,217.6,217.51,13.96727792]
[1733821749738,1.6644,217.6,217.52,0.68935197]
[1733821750346,1.6644,217.6,217.59,312.0]
[1733821751749,6.1955,217.65,217.59,312.0]
[1733821751961,6.1955,217.65,217.5,13.96727792]
[1733821751962,6.1955,217.65,217.51,23.776884]
[1733821752127,6.1955,217.65,217.52,0.68930309]
[1733821752635,6.1955,217.65,217.53,23.776884]
[1733821752837,20.0,217.62,217.54,0.68925032]
[1733821754035,1.6204,217.66,217.56,13.96727792]
[1733821754240,6.2726,217.71,217.57,37.74416192]
[1733821754241,7.893,217.71,217.57,37.74416192]
[1733821754548,7.893,217.71,217.54,23.776884]
[1733821754853,7.893,217.71,217.67,312.0]
[1733821755931,7.893,217.71,217.59,23.776884]
[1733821756131,7.893,217.71,217.61,23.776884]
[1733821756434,1.6204,217.71,217.62,0.68898248]
[1733821757441,6.2726,217.76,217.63,37.74416192]
[1733821757753,6.2726,217.76,217.64,14.65617184]
[1733821757976,1.6204,217.77,217.66,13.96727792]
[1733821758134,1.6204,217.77,217.67,0.68881449]
[1733821758935,1.6204,217.77,217.76,312.0]
[1733821759159,1.6204,217.77,217.62,13.96727792]
[1733821759366,1.6204,217.77,217.64,23.776884]
[1733821759590,1.6204,217.77,217.66,23.776884]
[1733821760383,1.6204,217.77,217.67,0.68888734]
[1733821760879,1.6204,217.77,217.68,23.776884]
[1733821761048,1.6204,217.77,217.69,0.68879418]
[1733821762155,1.6204,217.77,217.76,312.0]
[1733821762478,6.2726,217.81,217.76,312.0]
[1733821762679,6.2726,217.81,217.7,13.96727792]
[1733821763181,6.2726,217.81,217.71,0.6887395]
[1733821763759,1.6204,217.82,217.72,37.74416192]
[1733821764078,1.6204,217.82,217.74,13.96727792]
[1733821764383,1.6204,217.82,217.73,0.68865281]
[1733821764384,1.6204,217.82,217.73,13.96727792]
[1733821764681,1.6204,217.82,217.68,0.6885986]
[1733821764682,1.6204,217.82,217.7,23.776884]
[1733821764862,1.6204,217.82,217.71,0.68873109]
[1733821765560,1.6204,217.82,217.77,312.0]
[1733821766160,1.6204,217.82,217.67,8.2997]
[1733821766380,1.6204,217.82,217.68,24.4657135]
[1733821766559,1.6204,217.82,217.68,0.6888295]
[1733821767294,1.6204,217.82,217.67,13.96727792]
[1733821767601,1.6204,217.82,217.63,0.68887098]
[1733821767602,20.0,217.78,217.65,13.96727792]
[1733821767765,20.0,217.78,217.66,0.68889763]
[1733821768364,2.72708701,217.75,217.66,0.68889763]
[1733821768665,2.72708701,217.75,217.65,0.68890041]
[1733821769267,2.72708701,217.75,217.73,312.0]
[1733821769672,20.0,217.78,217.73,312.0]
[1733821769871,1.6204,217.82,217.73,312.0]
[1733821770582,23.776884,217.81,217.64,13.96727792]
[1733821770770,23.776884,217.81,217.65,0.68893408]
[1733821770771,20.0,217.78,217.65,0.68893408]
[1733821771659,20.0,217.78,217.62,21.57447792]
[1733821771660,2.82604247,217.77,217.64,13.96727792]
[1733821771862,2.82604247,217.77,217.67,23.776884]
[1733821772082,2.82604247,217.77,217.68,0.68880217]
[1733821772380,3.42721164,217.82,217.68,0.68880217]
[1733821773784,3.42721164,217.82,217.76,312.0]
[1733821775173,6.5441,217.55,217.4,7.05953784]
[1733821775374,6.5441,217.55,217.36,1.5266]
[1733821775375,20.0,217.51,217.36,1.5266]
[1733821775571,20.0,217.47,217.32,0.563875]
[1733821775883,20.0,217.43,217.32,1.25372622]
[1733821776380,10.59908747,217.43,217.32,1.25372622]
[1733821776584,20.0,217.4,217.32,1.25372622]
[1733821777968,20.0,217.4,217.32,0.563875]
[1733821778168,20.0,217.4,217.39,312.0]
[1733821778363,33.29550253,217.4,217.39,312.0]
[1733821780285,33.29550253,217.4,217.32,0.563875]
[1733821780584,10.66180902,217.39,217.32,0.563875]
[1733821780970,20.0,217.36,217.32,0.563875]
[1733821782700,30.66180902,217.36,217.32,0.563875]
[1733821783084,30.66180902,217.36,217.32,312.563875]
[1733821784573,20.0,217.36,217.32,312.563875]
[1733821786672,20.0,217.36,217.32,0.563875]
[1733821787095,6.2022,217.39,217.32,0.563875]
[1733821788411,20.0,217.36,217.32,0.563875]
[1733821789676,20.0,217.36,217.34,312.0]
[1733821791909,1.83963527,217.4,217.32,0.563875]
[1733821792075,20.0,217.41,217.32,0.563875]
[1733821794872,20.0,217.41,217.37,312.0]
[1733821797223,20.0,217.41,217.32,0.563875]
[1733821800106,20.0,217.41,217.38,312.0]
[1733821801931,20.0,217.41,217.32,0.563875]
[1733821802113,20.0,217.41,217.32,1.25383326]
[1733821802730,7.3567,217.48,217.33,37.76258842]
[1733821802932,7.3567,217.48,217.34,14.67556425]
[1733821803103,7.3567,217.48,217.34,0.68985983]
[1733821803604,9.2345006,217.48,217.34,14.67556425]
[1733821804117,1.8778006,217.48,217.34,14.67556425]
[1733821804301,4.47521563,217.5,217.35,13.98570442]
[1733821804497,4.47521563,217.5,217.36,14.67548828]
[1733821804806,7.3567,217.53,217.38,15.56690442]
[1733821805007,7.3567,217.53,217.47,312.0]
[1733821806140,20.0,217.5,217.38,1.5812]
[1733821806606,20.0,217.5,217.39,0.68981257]
[1733821807329,9.21800185,217.53,217.46,312.0]
[1733821807330,8.06350185,217.53,217.46,312.0]
[1733821807541,1.86130185,217.53,217.46,312.0]
[1733821807700,0.38718173,217.57,217.41,13.98570442]
[1733821807900,0.38718173,217.57,217.42,0.68962393]
[1733821808103,0.38718173,217.57,217.42,14.67532835]
[1733821808435,0.38718173,217.57,217.42,0.68962393]
[1733821808613,0.38718173,217.57,217.42,14.67532835]
[1733821808927,2.2620121,217.57,217.42,14.67532835]
[1733821809138,0.38718173,217.57,217.42,14.67532835]
[1733821809296,0.38718173,217.57,217.42,0.68962393]
[1733821809501,0.38718173,217.57,217.38,1.5812]
[1733821809829,23.776884,217.55,217.38,1.5812]
[1733821810008,23.776884,217.53,217.38,1.5812]
[1733821810405,20.0,217.5,217.38,1.5812]
[1733821810611,20.0,217.5,217.43,312.0]
[1733821811408,20.0,217.5,217.39,13.98570442]
[1733821811719,20.0,217.55,217.4,14.67536123]
[1733821812816,1.88803751,217.55,217.41,13.98570442]
[1733821813114,6.58938173,217.58,217.42,0.6896133]
[1733821813433,10.86783173,217.58,217.39,23.776884]
[1733821813645,10.86783173,217.58,217.38,1.5812]
[1733821813646,6.2022,217.58,217.38,1.5812]
[1733821813826,5.29900659,217.57,217.38,1.5812]
[1733821814227,23.776884,217.56,217.38,1.5812]
[1733821814413,20.0,217.49,217.43,312.0]
[1733821814848,20.0,217.49,217.38,15.56690442]
[1733821815031,20.0,217.53,217.39,0.68968245]
[1733821815416,28.44251573,217.56,217.41,13.98570442]
[1733821815651,8.08209862,217.58,217.42,14.6752938]
[1733821815837,8.08209862,217.58,217.43,37.76258842]
[1733821816149,8.08209862,217.58,217.44,0.68955564]
[1733821816730,20.0,217.55,217.44,0.68955564]
[1733821817050,2.82153919,217.57,217.48,13.98570442]
[1733821817220,6.4213,217.63,217.51,13.98570442]
[1733821817420,1.1545,217.64,217.53,13.98570442]
[1733821817626,6.4213,217.68,217.54,14.674947]
[1733821817831,6.4213,217.68,217.61,312.0]
[1733821818219,2.71523792,217.64,217.61,312.0]
[1733821819119,6.4213,217.68,217.61,312.0]
[1733821819848,6.4213,217.68,217.55,22.32001155]
[1733821820026,6.4213,217.68,217.56,0.68919761]
[1733821820859,6.4213,217.68,217.57,46.09689555]
[1733821820860,2.70907419,217.66,217.57,46.09689555]
[1733821821030,2.70907419,217.66,217.58,23.00912096]
[1733821821223,1.84835678,217.72,217.6,22.32001155]
[1733821821422,7.5758,217.74,217.58,0.68910941]
[1733821821932,9.42771278,217.74,217.58,23.00912096]
[1733821822536,2.70943,217.68,217.58,0.68910941]
[1733821822725,2.70943,217.68,217.59,0.68913869]
[1733821822925,2.70943,217.68,217.65,312.0]
[1733821823631,2.70943,217.68,217.56,6.3065]
[1733821824324,2.70943,217.68,217.55,0.68921852]
[1733821824643,2.70943,217.68,217.58,22.32001155]
[1733821824820,2.70943,217.68,217.59,0.68907686]
[1733821826224,2.70943,217.68,217.59,23.00908841]
[1733821826625,20.0,217.71,217.59,23.00908841]
[1733821826626,20.0,217.71,217.65,312.0]
[1733821826826,9.42771278,217.74,217.65,312.0]
[1733821827239,2.71068459,217.72,217.63,22.32001155]
[1733821827546,7.3472,217.79,217.64,23.00895035]
[1733821828428,7.3472,217.79,217.65,23.776884]
[1733821828641,7.3472,217.79,217.66,23.00885769]
[1733821828829,20.0,217.76,217.66,0.68884614]
[1733821829038,2.79637961,217.75,217.66,0.68884614]
[1733821829746,2.79637961,217.75,217.66,23.00885769]
[1733821830047,9.20414498,217.79,217.67,22.32001155]
[1733821830232,9.20414498,217.79,217.66,0.68884614]
[1733821830233,7.3472,217.85,217.73,312.0]
[1733821830750,7.3472,217.85,217.74,23.0087334]
[1733821831154,7.3472,217.85,217.74,0.68872185]
[1733821831454,2.73898761,217.83,217.74,0.68872185]
[1733821831654,2.73898761,217.83,217.72,0.68867937]
[1733821831837,2.73898761,217.83,217.68,22.32001155]
[1733821832147,2.73898761,217.83,217.67,23.776884]
[1733821832327,7.3472,217.85,217.68,0.68878028]
[1733821832328,20.0,217.81,217.68,0.68878028]
[1733821832527,20.0,217.82,217.74,22.32001155]
[1733821833032,20.0,217.82,217.73,22.32001155]
[1733821833348,20.0,217.82,217.72,22.32001155]
[1733821833527,22.81065999,217.82,217.7,23.00866948]
[1733821833729,22.81065999,217.82,217.75,312.0]
[1733821834144,22.81065999,217.82,217.73,22.32001155]
[1733821835746,22.81065999,217.82,217.68,22.32001155]
[1733821836648,20.0,217.78,217.67,22.32001155]
[1733821837150,20.0,217.81,217.73,312.0]
[1733821837942,20.0,217.81,217.65,1.5925]
[1733821838151,2.81065999,217.82,217.72,22.32001155]
[1733821838350,2.81065999,217.82,217.71,23.00870421]
[1733821838557,2.81065999,217.82,217.72,22.32001155]
[1733821838749,2.81065999,217.82,217.73,0.68865863]
[1733821839356,22.81065999,217.82,217.73,0.68865863]
[1733821840056,22.81065999,217.82,217.71,0.68869899]
[1733821840373,22.81065999,217.82,217.54,8.2565]
[1733821840374,43.776884,217.77,217.54,8.2565]
[1733821840661,24.88919952,217.77,217.62,13.92874696]
[1733821840828,24.88919952,217.77,217.63,0.68893976]
[1733821841036,4.88919952,217.77,217.69,312.0]
[1733821842043,20.0,217.78,217.7,0.68890894]
[1733821842251,20.0,217.78,217.66,25.371384]
[1733821842454,20.0,217.78,217.67,0.68879651]
[1733821842754,7.3472,217.81,217.68,46.08117459]
[1733821842934,7.3472,217.81,217.69,0.68872771]
[1733821843130,7.3472,217.81,217.7,23.776884]
[1733821843338,7.3472,217.81,217.71,0.68868109]
[1733821844443,6.1927,217.81,217.71,0.68868109]
[1733821844660,2.81065999,217.82,217.72,23.776884]
[1733821844954,1.1545,217.86,217.81,312.0]
[1733821845541,1.1545,217.86,217.73,23.776884]
[1733821845851,1.1545,217.86,217.74,0.68857862]
[1733821846444,20.0,217.84,217.74,0.68857862]
[1733821846849,22.70725956,217.83,217.74,0.68857862]
[1733821848545,20.0,217.84,217.82,312.0]
[1733821848954,20.0,217.84,217.75,23.776884]
[1733821849146,20.0,217.84,217.76,0.68852567]
[1733821849557,22.70468613,217.84,217.76,0.68852567]
[1733821850044,22.70468613,217.84,217.74,0.68862086]
[1733821850366,20.0,217.84,217.74,22.99291145]
[1733821850663,20.0,217.84,217.77,23.776884]
[1733821850843,20.0,217.84,217.78,0.6885013]
[1733821851773,2.96343561,217.9,217.8,22.30429059]
[1733821851774,22.96343561,217.9,217.8,22.30429059]
[1733821851952,21.1545,217.9,217.89,312.0]
[1733821852547,6.0096,217.94,217.89,312.0]
[1733821852978,7.83016804,217.94,217.89,312.0]
[1733821853473,4.88919952,217.98,217.84,22.30429059]
[1733821853683,6.68964161,217.98,217.85,0.68824532]
[1733821853874,2.81509833,217.93,217.85,0.68824532]
[1733821854047,6.68964161,217.98,217.86,23.776884]
[1733821854380,1.80044209,217.98,217.87,0.68820274]
[1733821854557,6.0096,218.0,217.87,0.68820274]
[1733821855279,7.85080919,218.0,217.87,0.68820274]
[1733821855576,7.85080919,218.0,217.87,22.99249333]
[1733821855741,2.77039084,217.98,217.88,23.776884]
[1733821856067,1.81167305,218.01,217.91,22.30429059]
[1733821856269,6.0096,218.05,217.97,312.0]
[1733821856860,6.0096,218.05,217.88,23.81689059]
[1733821857060,2.81116835,217.99,217.86,29.25467233]
[1733821857772,2.81116835,217.99,217.86,0.68818174]
[1733821858153,20.0,217.95,217.84,0.68828975]
[1733821859389,2.81116835,217.99,217.84,0.68828975]
[1733821859390,2.81116835,217.99,217.85,22.30429059]
[1733821859589,2.81116835,217.99,217.86,0.68819673]
[1733821859758,2.81116835,217.99,217.92,312.0]
[1733821860673,2.81116835,217.99,217.86,22.30429059]
[1733821860874,2.81116835,217.99,217.87,0.68820336]
[1733821861071,2.81116835,217.99,217.85,0.68826532]
[1733821861490,2.81116835,217.99,217.85,22.99255591]
[1733821862187,2.81116835,217.99,217.9,22.30429059]
[1733821862497,2.81116835,217.99,217.91,0.68807946]
[1733821863172,2.81116835,217.99,217.87,0.68818657]
[1733821863585,2.81116835,217.99,217.94,312.0]
[1733821864193,2.81116835,217.99,217.83,1.5126]
[1733821864194,2.81116835,217.99,217.9,22.30429059]
[1733821864480,2.81116835,217.99,217.91,0.68805285]
[1733821865392,2.81116835,217.99,217.9,0.68810379]
[1733821865564,2.81116835,217.99,217.87,0.68818272]
[1733821867081,2.81116835,217.99,217.92,312.0]
[1733821867681,2.81116835,217.99,217.93,0.6880922]
[1733821868757,2.81116835,217.99,217.91,0.6880446]
[1733821869463,2.81116835,217.99,217.83,11.5126]
[1733821869464,2.81116835,217.99,217.87,23.776884]
[1733821869678,2.81116835,217.99,217.87,0.68819279]
[1733821870585,2.81116835,217.99,217.92,312.0]
[1733821871173,2.81116835,217.99,217.86,22.30429059]
[1733821871369,2.81116835,217.99,217.87,0.68816756]
[1733821871578,2.81116835,217.99,217.89,46.08117459]
[1733821871900,2.81116835,217.99,217.9,22.99235645]
[1733821872982,2.81116835,217.99,217.9,0.68806586]
[1733821873182,2.81116835,217.99,217.89,0.68812505]
[1733821874220,2.81116835,217.99,217.95,312.0]
[1733821877192,23.776884,218.01,217.95,312.0]
[1733821877393,20.0,217.98,217.95,312.0]
[1733821877721,23.776884,218.04,217.88,22.30429059]
[1733821877891,23.776884,218.04,217.89,0.68805027]
[1733821878092,23.776884,218.04,217.9,22.30429059]
[1733821878322,23.776884,218.04,217.91,0.68804207]
[1733821878895,20.0,218.01,217.91,0.68804207]
[1733821879610,20.0,218.02,217.92,22.30429059]
[1733821879789,20.0,218.02,217.93,22.99225012]
[1733821879995,20.0,218.02,217.93,0.68795953]
[1733821880209,6.0096,218.05,217.93,0.68795953]
[1733821880727,6.0096,218.05,218.03,312.0]
[1733821882103,20.0,218.02,217.9,22.30429059]
[1733821882303,20.0,218.02,217.91,0.68808041]
[1733821883027,20.0,218.02,217.88,22.30429059]
[1733821883028,20.0,218.02,217.89,0.68812389]
[1733821883525,20.0,218.02,217.93,13.90759204]
[1733821883702,20.0,218.02,217.94,0.68798638]
[1733821885122,20.0,218.02,218.01,312.0]
[1733821886325,6.0096,218.05,218.01,312.0]
[1733821886606,0.563875,218.07,217.97,13.90759204]
[1733821886909,0.563875,218.07,217.98,0.68782478]
[1733821887907,20.563875,218.07,217.98,0.68782478]
[1733821888393,0.563875,218.07,217.99,37.68447604]
[1733821888589,0.563875,218.07,218.0,0.68774533]
[1733821889390,0.563875,218.07,218.06,312.0]
[1733821898619,0.563875,218.07,217.93,22.22372025]
[1733821898919,0.563875,218.07,217.91,1.5442]
[1733821898920,0.563875,218.07,217.95,22.22372025]
[1733821899126,0.563875,218.07,217.96,0.68784954]
[1733821899422,0.563875,218.07,217.97,22.22372025]
[1733821899612,0.563875,218.07,217.98,0.68779651]
[1733821899819,0.563875,218.07,217.98,22.91151676]
[1733821901608,0.563875,218.07,218.06,312.0]
[1733821902125,0.563875,218.07,217.98,22.22372025]
[1733821902334,0.563875,218.07,217.99,0.68779512]
[1733821903023,0.563875,218.07,217.93,0.68779092]
[1733821903218,0.563875,218.07,217.93,22.91151117]
[1733821904224,20.0,218.04,217.93,0.68779092]
[1733821904427,20.0,218.04,217.93,23.776884]
[1733821904819,20.0,218.04,217.92,0.68801478]
[1733821905011,20.0,218.04,218.0,312.0]
[1733821906507,20.0,218.04,217.87,22.22372025]
[1733821906724,20.0,218.04,217.85,23.84402025]
[1733821906725,20.0,218.0,217.85,23.84402025]
[1733821907028,20.0,218.0,217.86,0.68822819]
[1733821907603,20.0,218.0,217.96,312.0]
[1733821909609,20.0,218.0,217.89,22.22372025]
[1733821909808,20.0,218.0,217.9,0.68808788]
[1733821910221,20.0,218.0,217.87,0.68814069]
[1733821912635,20.0,218.0,217.95,312.0]
[1733821913940,20.0,217.95,217.79,21.92732885]
[1733821914156,20.0,217.95,217.8,0.68846249]
[1733821914322,1.1545,217.94,217.8,0.68846249]
[1733821915129,1.1545,217.94,217.79,1.6203]
[1733821915342,1.1545,217.94,217.8,0.68850499]
[1733821916844,1.1545,217.94,217.88,312.0]
[1733821917443,1.1545,217.94,217.82,23.776884]
[1733821917660,1.1545,217.94,217.83,0.68830296]
[1733821920154,6.0673,217.98,217.84,37.68831285]
[1733821920335,6.0673,217.98,217.97,312.0]
[1733821920673,4.58749044,218.01,217.97,312.0]
[1733821920854,2.70890892,218.01,217.9,13.91142885]
[1733821921031,2.70890892,218.01,217.91,24.46492715]
[1733821921345,4.88919952,218.05,217.91,24.46492715]
[1733821922435,20.0,218.03,217.91,24.46492715]
[1733821922748,20.0,218.05,217.91,24.46492715]
[1733821922953,2.79593772,218.03,217.91,24.46492715]
[1733821923856,2.79593772,218.03,218.02,312.0]
[1733821925434,1.718375,218.07,218.02,312.0]
[1733821925753,1.718375,218.07,217.93,23.776884]
[1733821925938,1.718375,218.07,217.95,23.776884]
[1733821926251,0.563875,218.07,217.96,0.6878865]
[1733821927167,0.563875,218.07,217.97,23.776884]
[1733821927351,0.563875,218.07,217.98,0.68785739]
[1733821927734,0.563875,218.07,217.95,0.68788205]
[1733821928344,20.0,218.06,217.95,0.68788205]
[1733821928659,20.0,218.02,217.89,2.30842044]
[1733821928860,20.0,218.02,217.97,312.0]
[1733821928861,27.2218,218.02,217.97,312.0]
[1733821930540,27.2218,218.02,217.89,1.6203]
[1733821930837,27.2218,218.02,217.9,0.68808235]
[1733821931644,21.80766737,218.03,217.91,23.776884]
[1733821931959,20.0,218.04,217.92,0.68803566]
[1733821932164,20.0,218.03,217.92,0.68803566]
[1733821933765,5.54482396,218.06,218.0,312.0]
[1733821933963,1.85566448,218.06,218.0,312.0]
[1733821934162,7.785675,218.07,217.93,23.776884]
[1733821934365,7.785675,218.07,217.95,23.776884]
[1733821934571,7.785675,218.07,217.96,0.68790515]
[1733821934888,0.563875,218.07,217.97,23.776884]
[1733821935044,0.563875,218.07,217.98,0.68779891]
[1733821935245,0.563875,218.07,217.99,23.776884]
[1733821935445,0.563875,218.07,218.0,0.68779862]
[1733821935845,0.563875,218.07,218.01,23.776884]
[1733821936074,0.563875,218.07,218.02,0.68771554]
[1733821936547,0.563875,218.07,218.05,13.91142885]
[1733821936746,0.563875,218.07,218.06,24.46442813]
[1733821937063,0.563875,218.07,218.06,336.46442813]
[1733821937269,0.563875,218.07,218.06,349.68831285]
[1733821939063,0.563875,218.07,218.06,335.776884]
[1733821939265,0.563875,218.07,218.06,349.68831285]
[1733821940274,0.563875,218.07,218.06,335.776884]
[1733821940479,0.563875,218.07,218.06,349.68831285]
[1733821940866,0.563875,218.07,218.06,312.0]
[1733821941671,0.563875,218.07,218.06,349.68831285]
[1733821943771,0.563875,218.07,218.06,335.776884]
[1733821944150,0.563875,218.07,218.06,349.68831285]
[1733821945071,0.563875,218.07,218.06,335.776884]
[1733821945271,0.563875,218.07,218.06,325.91142885]
[1733821947264,0.563875,218.07,218.05,13.91142885]
[1733821947462,0.563875,218.07,218.06,0.6875909]
[1733821948082,0.563875,218.07,218.06,14.59901975]
[1733821949486,0.563875,218.07,218.06,0.6875909]
[1733821950071,0.563875,218.07,218.06,14.59901975]
[1733821950273,0.563875,218.07,218.06,326.59901975]
[1733821950499,0.563875,218.07,218.06,325.91142885]
[1733821951179,0.563875,218.07,218.06,312.0]
[1733821952779,0.563875,218.07,218.06,37.68831285]
[1733821952980,0.563875,218.07,218.06,38.37580449]
[1733821953481,0.563875,218.07,218.06,24.46437564]
[1733821954182,0.563875,218.07,218.06,0.68749164]
[1733821954666,0.563875,218.07,218.05,0.68760428]
[1733821955084,0.563875,218.07,218.05,14.59903313]
[1733821955398,0.563875,218.07,218.06,37.68831285]
[1733821955565,0.563875,218.07,218.06,38.3758094]
[1733821955882,0.563875,218.07,218.06,350.3758094]